fUSD/lending_fUSD_20260314
["ID","MTS","AMOUNT","RATE_DAILY","PERIOD"]
[408354270,1773487842394,-300.0,0.000199,7]
[408354271,1773487842403,-25000.0,0.000199,3]
[408354272,1773487842412,-565.0,0.000199,2]
[408354273,1773487842422,-2000.0,0.000199,2]
[408354274,1773487842431,-5566.24069256,0.000199,2]
[408354275,1773487842441,-200.0,0.00019903,2]
[408354276,1773487842451,-200.0,0.00019903,2]
[408354277,1773487842460,-500.0,0.00019927,2]
[408354278,1773487842470,-767.0,0.00019927,2]
[408354279,1773487842480,-590.0,0.00019927,2]
[408354280,1773487842490,-500.0,0.00019927,2]
[408354281,1773487842500,-613.20543418,0.00019927,2]
[408354282,1773487842509,-500.0,0.00019927,2]
[408354283,1773487842518,-500.0,0.00019927,2]
[408354284,1773487842527,-292.06,0.00019939,2]
[408354285,1773487842541,-150.0,0.00019944,2]
[408354286,1773487842550,-150.0,0.00019944,2]
[408354287,1773487842560,-150.0,0.00019944,2]
[408354288,1773487842570,-150.0,0.00019944,2]
[408354289,1773487842580,-150.0,0.00019944,2]
[408354290,1773487842589,-150.139,0.00019944,2]
[408354291,1773487842602,-193.014,0.00019944,2]
[408354292,1773487842611,-165.615,0.00019944,2]
[408354293,1773487842621,-214.326,0.00019944,2]
[408354294,1773487842641,-250.0,0.00019944,2]
[408354295,1773487842662,-237.718,0.00019944,2]
[408354296,1773487842672,-178.0,0.00019944,2]
[408354297,1773487842682,-151.0,0.00019967,2]
[408354298,1773487842692,-500.0,0.0001997,2]
[408354299,1773487842702,-500.0,0.0001997,2]
[408354300,1773487842711,-500.0,0.0001997,2]
[408354301,1773487842720,-4840.0,0.00019973,2]
[408354302,1773487842730,-567.51378114,0.0001998,2]
[408354303,1773487842740,-200.0,0.0001998,2]
[408354304,1773487842753,-200.0,0.0001998,2]
[408354305,1773487842762,-165.16,0.00019982,2]
[408354306,1773487842771,-500.0,0.00019982,2]
[408354307,1773487842782,-767.0,0.00019982,2]
[408354308,1773487842792,-590.0,0.00019982,2]
[408354309,1773487842801,-500.0,0.00019982,2]
[408354310,1773487842811,-500.0,0.00019982,2]
[408354311,1773487842822,-500.0,0.00019982,2]
[408354312,1773487842832,-225.45228813,0.0001999,2]
[408354313,1773487842842,-883.77,0.00019995,2]
[408354314,1773487842851,-151.0,0.00019997,2]
[408354315,1773487842861,-173.31973099,0.00019998,2]
[408354316,1773487842870,-500.0,0.00019998,2]
[408354317,1773487842880,-217.14704882,0.00019999,2]
[408354318,1773487842890,-619.79634777,0.00019999,2]
[408354319,1773487842900,-514.91,0.00019999,2]
[408354320,1773487842909,-514.91,0.00019999,2]
[408354321,1773487842918,-514.91,0.00019999,2]
[408354323,1773487842927,-514.91,0.00019999,2]
[408354324,1773487842936,-514.91,0.00019999,2]
[408354325,1773487842947,-514.91,0.00019999,2]
[408354326,1773487842956,-514.9535625,0.00019999,2]
[408354327,1773487842980,-500.0,0.00019999,2]
[408354328,1773487842991,-500.0,0.00019999,2]
[408354329,1773487843002,-582.43351987,0.00019999,2]
[408354330,1773487843013,-500.0,0.00019999,2]
[408354331,1773487843023,-500.0,0.00019999,2]
[408354332,1773487843034,-500.0,0.00019999,2]
[408354333,1773487843044,-500.0,0.00019999,2]
[408354334,1773487843056,-504.81538106,0.00019999,2]
[408354335,1773487843070,-914663.75686418,0.0002,2]
[408354337,1773487843122,-927.69623708,0.0002,2]
[408354339,1773487843133,-664.54991355,0.0002,2]
[408354341,1773487843145,-1606.72727158,0.0002,2]
[408354343,1773487843156,-1998.50742485,0.0002,2]
[408354344,1773487843167,-4158.62726896,0.0002,2]
[408354345,1773487843472,-2000.0,0.00017431,2]
[408354346,1773487843484,-1000.0,0.000188,2]
[408354347,1773487843493,-160.29424,0.000191,2]
[408354349,1773487843503,-308.40422394,0.000191,2]
[408354351,1773487846134,-2979.47963491,0.000191,2]
[408354352,1773487846144,-151.0,0.000191,2]
[408354353,1773487846154,-151.0,0.000191,2]
[408354354,1773487846164,-151.0,0.000191,2]
[408354355,1773487846174,-151.0,0.00019146,2]
[408354356,1773487846184,-151.0,0.00019146,2]
[408354357,1773487846193,-151.0,0.00019146,2]
[408354358,1773487846203,-151.0,0.0001918,2]
[408354359,1773487846212,-223.310372,0.0001918,2]
[408354360,1773487846222,-151.0,0.0001918,2]
[408354361,1773487846232,-151.0,0.000192,2]
[408354362,1773487846242,-3287.88385885,0.000192,2]
[408354363,1773487846252,-151.0,0.00019489,2]
[408354364,1773487846261,-151.0,0.00019489,2]
[408354365,1773487846271,-2000.0,0.0001961,2]
[408354366,1773487846280,-623.041,0.00019864,2]
[408354367,1773487846290,-474.92109726,0.000199,2]
[408354368,1773487846299,-721.03022731,0.0002,2]
[408354369,1773487846399,-3287.88385885,0.000193,2]
[408354370,1773487846409,-91878.20266806,0.0002,2]
[408354373,1773487954802,500.0,0.00014224,2]
[408354374,1773487986723,158.0,0.0001425,2]
[408354375,1773488051862,158.0,0.0001425,2]
[408354395,1773488847766,5533.0,0.000139,5]
[408354397,1773488955666,151.88,9.012e-05,2]
[408354398,1773488955858,151.88,0.00011265,2]
[408354399,1773488956058,151.88,0.00013518,2]
[408354405,1773489032217,-282.0,0.00015771,2]
[408354406,1773489032227,-151.88,0.00015771,2]
[408354407,1773489032240,-104.09245266,0.00016847,2]
[408354408,1773489032252,-69.26461484,0.00016847,2]
[408354409,1773489032262,-1137.20657822,0.00016944,2]
[408354410,1773489032272,-469.04606953,0.00016946,2]
[408354411,1773489032283,-1249.39039257,0.00016946,2]
[408354412,1773489032295,-781.5635379,0.00016946,2]
[408354413,1773489032305,-246.35356071,0.00016947,2]
[408354414,1773489032316,-500.0,0.00016947,2]
[408354415,1773489032356,-1146.43337587,0.00016947,2]
[408354416,1773489032407,-267.09849734,0.00016947,2]
[408354417,1773489037500,-1872.34991709,0.00016947,2]
[408354418,1773489037510,-1200.0,0.00016954,2]
[408354419,1773489037520,-342.0208413,0.00016955,2]
[408354420,1773489037530,-300.0,0.00016969,2]
[408354421,1773489037541,-200.53229303,0.0001697,2]
[408354422,1773489037552,-195.0,0.0001697,2]
[408354423,1773489037562,-250.0,0.0001697,2]
[408354424,1773489037572,-508.0,0.00017,2]
[408354425,1773489037582,-195.0,0.00017028,2]
[408354426,1773489037592,-288.62197158,0.00017028,2]
[408354427,1773489037602,-300.0,0.00017039,2]
[408354428,1773489037611,-2500.0,0.00017349,2]
[408354429,1773489037621,-173.35706749,0.00017408,2]
[408354430,1773489037631,-18967.56694372,0.00017476,2]
[408354431,1773489037641,-2474.97,0.00017478,2]
[408354432,1773489037650,-150.0,0.00017548,2]
[408354433,1773489037661,-1179.0,0.00017703,2]
[408354435,1773489037670,-160.048,0.000178,2]
[408354436,1773489037680,-500.0,0.000178,2]
[408354437,1773489037689,-160.048,0.000178,2]
[408354438,1773489037699,-160.048,0.000178,2]
[408354439,1773489037709,-160.048,0.000178,2]
[408354440,1773489037720,-160.048,0.000178,2]
[408354441,1773489037730,-160.048,0.000178,2]
[408354442,1773489037741,-160.0,0.000178,2]
[408354443,1773489037751,-160.048,0.000178,2]
[408354445,1773489037760,-160.048,0.000178,2]
[408354446,1773489037770,-500.0,0.000178,2]
[408354447,1773489037780,-301.0,0.00017802,2]
[408354448,1773489037790,-173.35706749,0.00017968,2]
[408354449,1773489037800,-257.25,0.00017991,2]
[408354450,1773489037809,-151.88,0.00018025,2]
[408354451,1773489037819,-888.43501421,0.00018041,2]
[408354452,1773489037828,-850.0,0.0001805,2]
[408354453,1773489037838,-547.47427654,0.0001805,2]
[408354454,1773489037847,-200.0,0.00018051,2]
[408354455,1773489037857,-500.0,0.00018051,2]
[408354456,1773489037867,-151.0,0.00018051,2]
[408354457,1773489037877,-500.0,0.00018051,2]
[408354458,1773489037886,-500.0,0.00018051,2]
[408354459,1773489037897,-151.0,0.00018051,2]
[408354460,1773489037906,-500.0,0.00018051,2]
[408354461,1773489037915,-525.90669548,0.00018051,2]
[408354462,1773489037925,-151.0,0.00018051,2]
[408354463,1773489037934,-500.0,0.00018051,2]
[408354464,1773489037943,-151.0,0.00018051,2]
[408354465,1773489037952,-500.0,0.00018051,2]
[408354466,1773489037970,-151.0,0.00018051,2]
[408354467,1773489037981,-500.0,0.00018051,2]
[408354468,1773489037991,-151.0,0.00018051,2]
[408354469,1773489038001,-151.0,0.00018051,2]
[408354470,1773489038011,-500.0,0.00018051,2]
[408354471,1773489038021,-151.0,0.00018051,2]
[408354472,1773489038031,-151.0,0.00018051,2]
[408354473,1773489038041,-294.89491643,0.00018051,2]
[408354474,1773489038050,-151.0,0.00018051,2]
[408354475,1773489038060,-151.0,0.00018051,2]
[408354476,1773489038074,-151.0,0.00018051,2]
[408354477,1773489038084,-151.0,0.00018051,2]
[408354478,1773489038094,-151.0,0.00018051,2]
[408354479,1773489038104,-151.0,0.00018051,2]
[408354480,1773489038115,-151.0,0.00018051,2]
[408354481,1773489038125,-151.0,0.00018051,2]
[408354482,1773489038135,-151.0,0.00018051,2]
[408354483,1773489038146,-151.0,0.00018051,2]
[408354484,1773489038156,-151.0,0.00018051,2]
[408354485,1773489038166,-151.0,0.00018051,2]
[408354487,1773489038176,-151.0,0.00018051,2]
[408354489,1773489038186,-151.0,0.00018051,2]
[408354491,1773489038197,-151.0,0.00018051,2]
[408354492,1773489038207,-151.0,0.00018051,2]
[408354493,1773489038218,-151.0,0.00018051,2]
[408354494,1773489038231,-151.0,0.00018051,2]
[408354495,1773489038242,-151.0,0.00018051,2]
[408354496,1773489038252,-500.0,0.00018051,2]
[408354497,1773489038262,-1000.0,0.00018061,2]
[408354498,1773489038272,-12433.67,0.00018062,2]
[408354500,1773489038281,-221.57,0.00018068,2]
[408354502,1773489038291,-1000.0,0.00018082,2]
[408354504,1773489038301,-19537.75246446,0.00018133,2]
[408354506,1773489038311,-403.60920106,0.00018203,2]
[408354508,1773489038321,-1207.86,0.00018246,2]
[408354510,1773489038331,-3240.0,0.00018247,2]
[408354511,1773489038341,-2061.92,0.00018281,2]
[408354512,1773489038351,-1227.59,0.00018301,2]
[408354513,1773489038361,-185.08,0.00018301,2]
[408354514,1773489038372,-500.0,0.00018325,2]
[408354515,1773489038382,-29840.57431289,0.00018325,2]
[408354516,1773489038392,-1000.0,0.00018348,2]
[408354517,1773489038402,-1000.0,0.00018356,2]
[408354518,1773489038413,-160.032,0.00018373,2]
[408354519,1773489038426,-500.0,0.00018373,2]
[408354520,1773489038436,-160.048,0.00018373,2]
[408354521,1773489038446,-500.0,0.00018373,2]
[408354522,1773489038456,-500.0,0.00018373,2]
[408354523,1773489038466,-500.0,0.00018373,2]
[408354524,1773489038477,-500.0,0.00018373,2]
[408354525,1773489038487,-500.0,0.00018373,2]
[408354526,1773489038497,-500.0,0.00018373,2]
[408354527,1773489038509,-331.86630007,0.00018373,2]
[408354528,1773489038519,-500.0,0.00018373,2]
[408354529,1773489038529,-342.93581218,0.00018373,2]
[408354530,1773489038539,-500.0,0.00018373,2]
[408354531,1773489038549,-500.0,0.00018373,2]
[408354532,1773489038559,-500.0,0.00018373,2]
[408354533,1773489038568,-11784.9,0.00018386,2]
[408354534,1773489038578,-1059.2966663,0.00018449,2]
[408354535,1773489038588,-755.0,0.00018475,2]
[408354536,1773489038597,-5762.50605033,0.00018534,2]
[408354537,1773489038607,-420.0,0.00018535,2]
[408354538,1773489038616,-1295.59272205,0.0001854,2]
[408354539,1773489038626,-539.35,0.00018563,2]
[408354540,1773489038639,-166.66,0.00018579,2]
[408354541,1773489038649,-500.0,0.00018599,2]
[408354542,1773489038658,-200.0,0.00018599,2]
[408354543,1773489038669,-1680.0,0.0001861,2]
[408354544,1773489038678,-1999.0,0.0001863,2]
[408354545,1773489038688,-200.0,0.00018634,2]
[408354546,1773489038698,-195.0,0.00018634,2]
[408354547,1773489038707,-250.0,0.00018634,2]
[408354548,1773489038717,-600.0,0.00018634,2]
[408354549,1773489038728,-194.24944797,0.00018634,2]
[408354551,1773489038738,-500.0,0.00018634,2]
[408354553,1773489038747,-300.0,0.00018634,2]
[408354555,1773489038756,-5000.0,0.00018634,2]
[408354556,1773489038766,-300.0,0.00018634,2]
[408354557,1773489038775,-300.74190287,0.00018634,2]
[408354558,1773489038785,-2500.0,0.00018634,2]
[408354559,1773489038794,-2500.0,0.00018638,2]
[408354560,1773489038803,-755.0,0.00018667,2]
[408354561,1773489038813,-5762.50605033,0.00018686,2]
[408354562,1773489038826,-1008.55,0.000187,2]
[408354563,1773489038835,-2000.0,0.0001871,2]
[408354564,1773489038844,-519.64,0.00018757,2]
[408354565,1773489038854,-247.0,0.00018766,2]
[408354566,1773489038864,-500.0,0.00018786,2]
[408354567,1773489038874,-151.0,0.00018786,2]
[408354569,1773489038883,-755.0,0.00018799,2]
[408354571,1773489038892,-1000.0,0.000188,2]
[408354572,1773489038902,-1711.0826,0.000188,2]
[408354574,1773489038911,-27748.07335652,0.000188,2]
[408354576,1773489038920,-200.0,0.000188,6]
[408354578,1773489038929,-755.0,0.00018801,2]
[408354580,1773489038939,-5762.50605033,0.00018838,2]
[408354582,1773489038949,-220.072,0.00018873,2]
[408354584,1773489038958,-500.66398075,0.00018873,2]
[408354585,1773489038967,-500.0,0.00018873,2]
[408354587,1773489038977,-2002.79,0.00018888,2]
[408354589,1773489038985,-2002.79,0.00018888,2]
[408354590,1773489038995,-2002.79,0.0001889,2]
[408354592,1773489039005,-2002.79,0.0001889,2]
[408354594,1773489039014,-2002.79,0.0001889,2]
[408354596,1773489039023,-503.26645979,0.00018896,2]
[408354598,1773489039032,-151.0,0.00018896,2]
[408354600,1773489039041,-507.17926616,0.00018897,2]
[408354601,1773489039050,-500.0,0.00018897,2]
[408354603,1773489039059,-500.0,0.00018897,2]
[408354605,1773489039073,-178.46475675,0.00018897,2]
[408354607,1773489039082,-1382.42208364,0.00018897,2]
[408354609,1773489039091,-347.07248994,0.00018897,2]
[408354611,1773489039100,-500.0,0.00018897,2]
[408354613,1773489039111,-500.0,0.00018897,2]
[408354614,1773489039120,-500.0,0.00018897,2]
[408354616,1773489039129,-361.66018813,0.00018897,2]
[408354618,1773489039140,-500.0,0.00018897,2]
[408354620,1773489039150,-330.52267136,0.00018897,2]
[408354622,1773489039160,-1382.42208364,0.00018897,2]
[408354623,1773489039169,-500.0,0.00018897,2]
[408354625,1773489039179,-500.0,0.00018897,2]
[408354626,1773489039188,-500.0,0.00018897,2]
[408354627,1773489039198,-500.0,0.00018897,2]
[408354628,1773489039207,-500.0,0.00018897,2]
[408354629,1773489039216,-1382.42208364,0.00018897,2]
[408354631,1773489039225,-165.00631175,0.00018897,2]
[408354632,1773489039235,-500.0,0.00018897,2]
[408354633,1773489039244,-1382.42208364,0.00018897,2]
[408354634,1773489039254,-500.0,0.00018897,2]
[408354635,1773489039263,-500.0,0.00018897,2]
[408354636,1773489039271,-500.0,0.00018897,2]
[408354637,1773489039281,-572.44344647,0.00018897,2]
[408354638,1773489039290,-1382.42208364,0.00018897,2]
[408354639,1773489039299,-500.0,0.00018897,2]
[408354640,1773489039308,-500.0,0.00018897,2]
[408354641,1773489039317,-1382.42208364,0.00018897,2]
[408354642,1773489039533,-411.73696034,0.00018897,2]
[408354643,1773489039543,-500.0,0.00018897,2]
[408354644,1773489039552,-500.0,0.00018897,2]
[408354645,1773489039561,-1382.42208364,0.00018897,2]
[408354646,1773489039571,-500.0,0.00018897,2]
[408354647,1773489039581,-500.0,0.00018897,2]
[408354648,1773489039590,-500.0,0.00018897,2]
[408354649,1773489039599,-500.0,0.00018897,2]
[408354650,1773489039609,-1382.42208364,0.00018897,2]
[408354651,1773489039618,-500.0,0.00018897,2]
[408354652,1773489039627,-1382.42208364,0.00018897,2]
[408354653,1773489039637,-1382.42208364,0.00018897,2]
[408354654,1773489039646,-500.0,0.00018897,2]
[408354655,1773489039655,-1382.42208364,0.00018897,2]
[408354656,1773489039670,-1382.42208364,0.00018897,2]
[408354657,1773489039679,-500.0,0.00018897,2]
[408354658,1773489039688,-1382.42208364,0.00018897,2]
[408354659,1773489039697,-1382.42208364,0.00018897,2]
[408354660,1773489039707,-500.0,0.00018897,2]
[408354661,1773489039717,-1382.42208364,0.00018897,2]
[408354662,1773489039726,-1382.42208364,0.00018897,2]
[408354663,1773489039736,-1382.42208364,0.00018897,2]
[408354664,1773489039746,-1382.42208364,0.00018897,2]
[408354665,1773489039755,-1382.42208364,0.00018897,2]
[408354666,1773489039764,-1382.42208364,0.00018897,2]
[408354667,1773489039774,-1382.42208364,0.00018897,2]
[408354668,1773489039783,-1382.42208364,0.00018897,2]
[408354669,1773489039792,-1382.42208364,0.00018897,2]
[408354670,1773489039802,-1382.42208364,0.00018897,2]
[408354671,1773489039811,-1382.42208364,0.00018897,2]
[408354672,1773489039820,-1382.42208364,0.00018897,2]
[408354673,1773489039830,-1382.42208364,0.00018897,2]
[408354674,1773489039839,-1382.42208364,0.00018897,2]
[408354675,1773489039848,-1382.42208364,0.00018897,2]
[408354676,1773489039858,-1382.42208364,0.00018897,2]
[408354677,1773489039867,-1382.42208364,0.00018897,2]
[408354678,1773489039875,-1224.9553331,0.00018897,2]
[408354679,1773489039890,-157.46675054,0.00018897,2]
[408354680,1773489039899,-1382.42208364,0.00018897,2]
[408354681,1773489039909,-1382.42208364,0.00018897,2]
[408354682,1773489039918,-1382.42208364,0.00018897,2]
[408354683,1773489039928,-1382.42208364,0.00018897,2]
[408354684,1773489039937,-1382.42208364,0.00018897,2]
[408354685,1773489039946,-1382.42208364,0.00018897,2]
[408354686,1773489039956,-1382.42208364,0.00018897,2]
[408354687,1773489039966,-1382.42208364,0.00018897,2]
[408354688,1773489039976,-1382.42208364,0.00018897,2]
[408354689,1773489039985,-1382.42208364,0.00018897,2]
[408354690,1773489039995,-1382.42208364,0.00018897,2]
[408354691,1773489040005,-791.43516489,0.00018897,2]
[408354692,1773489040017,-590.98691875,0.00018897,2]
[408354693,1773489040026,-1382.42208364,0.00018897,2]
[408354694,1773489040036,-1382.42208364,0.00018897,2]
[408354695,1773489040045,-1382.42208364,0.00018897,2]
[408354696,1773489040055,-1382.42208364,0.00018897,2]
[408354697,1773489040066,-1382.42208364,0.00018897,2]
[408354698,1773489040077,-1382.42208364,0.00018897,2]
[408354699,1773489040086,-1382.42208364,0.00018897,2]
[408354700,1773489040095,-1382.42208364,0.00018897,2]
[408354701,1773489040105,-1382.42208364,0.00018897,2]
[408354702,1773489040114,-1382.42208364,0.00018897,2]
[408354703,1773489040123,-1382.42208364,0.00018897,2]
[408354704,1773489040132,-1382.42208364,0.00018897,2]
[408354705,1773489040143,-1382.42208364,0.00018897,2]
[408354706,1773489040152,-1382.42208364,0.00018897,2]
[408354707,1773489040161,-1382.42208364,0.00018897,2]
[408354708,1773489040170,-500.0,0.00018898,2]
[408354709,1773489040179,-500.0,0.00018898,2]
[408354710,1773489040188,-500.0,0.00018899,2]
[408354711,1773489040197,-500.0,0.00018899,2]
[408354712,1773489040206,-500.0,0.00018899,2]
[408354713,1773489040216,-500.0,0.00018899,2]
[408354714,1773489040225,-265.26153167,0.00018899,2]
[408354715,1773489040234,-500.0,0.00018899,2]
[408354716,1773489040243,-500.0,0.00018899,2]
[408354717,1773489040252,-489.89369862,0.00018899,2]
[408354718,1773489040261,-206.6978001,0.00018899,2]
[408354719,1773489040270,-500.0,0.00018899,2]
[408354720,1773489040279,-500.0,0.00018899,2]
[408354721,1773489040288,-166.91432326,0.00018899,2]
[408354722,1773489040297,-500.0,0.00018899,2]
[408354723,1773489040306,-5555.82185536,0.000189,2]
[408354724,1773489040318,-5549.61140976,0.000189,2]
[408354725,1773489040333,-1363.17503185,0.000189,2]
[408354726,1773489040344,-1641.75150722,0.000189,2]
[408354727,1773489040361,-450012.362259,0.000189,2]
[408354728,1773489040370,-400.0,0.000189,6]
[408354729,1773489040379,-4539.4585,0.00018904,2]
[408354730,1773489040389,-1221.0,0.00018904,2]
[408354731,1773489040398,-1000.0,0.00018921,2]
[408354732,1773489040408,-1000.0,0.00018921,2]
[408354733,1773489040419,-1000.0,0.00018921,2]
[408354734,1773489040429,-1000.0,0.00018921,2]
[408354736,1773489040438,-1000.0,0.00018921,2]
[408354737,1773489040447,-1000.0,0.00018921,2]
[408354738,1773489040457,-1000.0,0.00018921,2]
[408354739,1773489040468,-500.0,0.00018921,2]
[408354741,1773489040478,-501.34415765,0.00018921,2]
[408354742,1773489040488,-1000.0,0.00018921,2]
[408354743,1773489040498,-27748.07335648,0.00018922,2]
[408354744,1773489040507,-317.0,0.00018934,2]
[408354745,1773489040517,-171.18648274,0.0001894,2]
[408354746,1773489040527,-226.72060786,0.0001894,2]
[408354747,1773489040536,-165.70725892,0.00018973,2]
[408354748,1773489040545,-500.58140027,0.00018973,2]
[408354749,1773489040555,-167.32479621,0.00018973,2]
[408354750,1773489040564,-500.0,0.00018973,2]
[408354751,1773489040574,-500.0,0.00018973,2]
[408354752,1773489040583,-500.0,0.00018973,2]
[408354753,1773489040592,-500.0,0.00018973,2]
[408354754,1773489040601,-1008.55,0.00018974,2]
[408354755,1773489040611,-5762.50605033,0.00018989,2]
[408354756,1773489040620,-755.0,0.00018997,2]
[408354757,1773489040630,-500.0,0.00018998,2]
[408354758,1773489040639,-507.40236472,0.00018998,2]
[408354759,1773489040649,-500.0,0.00018998,2]
[408354760,1773489040658,-500.0,0.00018998,2]
[408354761,1773489040668,-268.2444654,0.00018998,2]
[408354762,1773489040677,-500.0,0.00018998,2]
[408354763,1773489040686,-500.0,0.00018998,2]
[408354764,1773489040696,-246408.15749807,0.00018999,2]
[408354765,1773489040707,-555.59417147,0.00018999,2]
[408354766,1773489040751,-423.54543046,0.00018999,2]
[408354767,1773489040760,-265.6,0.00019,2]
[408354768,1773489040770,-7324.79324947,0.00019,2]
[408354769,1773489040781,-5000.0,0.00019,2]
[408354770,1773489040790,-5000.0,0.00019,2]
[408354771,1773489040800,-5000.0,0.00019,2]
[408354772,1773489040810,-5000.0,0.00019,2]
[408354773,1773489040820,-168.0,0.0001901,2]
[408354774,1773489040830,-183.30422924,0.00019034,2]
[408354775,1773489040840,-755.0,0.00019038,2]
[408354776,1773489040850,-27748.07335648,0.00019044,2]
[408354777,1773489040858,-800.0,0.00019133,2]
[408354778,1773489040868,-5762.50605033,0.00019141,2]
[408354779,1773489040877,-500.0,0.00019147,2]
[408354780,1773489040887,-200.0,0.00019147,2]
[408354781,1773489040896,-27748.07335648,0.00019167,2]
[408354782,1773489040906,-2000.0,0.000192,2]
[408354783,1773489040916,-168.0,0.00019216,2]
[408354784,1773489040925,-500.0,0.00019233,2]
[408354785,1773489040934,-500.0,0.00019233,2]
[408354786,1773489040944,-1008.55,0.00019248,2]
[408354787,1773489040953,-27748.07335648,0.00019289,2]
[408354788,1773489040963,-5762.50605033,0.00019293,2]
[408354789,1773489040972,-390.88344567,0.00019355,2]
[408354790,1773489040982,-27748.07335648,0.00019411,2]
[408354791,1773489040991,-500.0,0.00019421,2]
[408354792,1773489041000,-2815.0,0.0001943,2]
[408354793,1773489041010,-5762.50605033,0.00019445,2]
[408354794,1773489041019,-168.0,0.00019458,2]
[408354795,1773489041029,-1500.0,0.00019468,2]
[408354796,1773489041038,-191.85246219,0.00019468,2]
[408354797,1773489041048,-500.0,0.00019468,2]
[408354798,1773489041057,-1282.33990359,0.00019468,2]
[408354799,1773489041069,-1500.0,0.00019468,2]
[408354800,1773489041079,-1004.05420061,0.00019468,2]
[408354801,1773489041090,-1514.79369625,0.00019468,2]
[408354802,1773489041100,-1012.6518,0.00019468,2]
[408354804,1773489041111,-700.0,0.000195,7]
[408354806,1773489041121,-1000.0,0.00019521,2]
[408354808,1773489041130,-698.14141269,0.00019521,2]
[408354809,1773489041140,-1000.0,0.00019521,2]
[408354810,1773489041151,-1000.0,0.00019521,2]
[408354811,1773489041160,-1008.55,0.00019522,2]
[408354812,1773489041169,-27748.07335648,0.00019533,2]
[408354813,1773489041179,-4113.0,0.00019539,5]
[408354814,1773489041188,-5762.50605033,0.00019596,2]
[408354815,1773489041197,-868.72326813,0.000196,2]
[408354816,1773489041207,-3158.055,0.000196,2]
[408354817,1773489041216,-174.164,0.000196,2]
[408354818,1773489041225,-4531.52393391,0.000196,2]
[408354819,1773489041237,-900.0,0.000196,7]
[408354820,1773489041247,-166.66,0.00019601,2]
[408354821,1773489041256,-524.5,0.00019627,3]
[408354822,1773489041266,-237.85,0.00019633,3]
[408354823,1773489041275,-27748.07335648,0.00019656,2]
[408354824,1773489041284,-210.10602291,0.00019663,2]
[408354825,1773489041293,-239.48890085,0.00019663,2]
[408354826,1773489041303,-1687.14174277,0.00019663,2]
[408354827,1773489041312,-485.91122876,0.00019663,2]
[408354828,1773489041322,-15419.3780872,0.00019663,2]
[408354830,1773489041335,-1276.7623649,0.00019663,2]
[408354831,1773489041344,-791.6370233,0.00019664,2]
[408354832,1773489041355,-151.0,0.00019687,2]
[408354833,1773489041364,-1100.0,0.000197,7]
[408354834,1773489041374,-150.0,0.00019708,2]
[408354835,1773489041384,-150.0,0.00019708,2]
[408354836,1773489041394,-150.0,0.00019708,2]
[408354837,1773489041403,-150.0,0.00019708,2]
[408354838,1773489041412,-150.0,0.00019708,2]
[408354839,1773489041422,-500.0,0.00019708,2]
[408354840,1773489041432,-150.0,0.00019708,2]
[408354841,1773489041442,-150.0,0.00019708,2]
[408354842,1773489041452,-500.0,0.00019708,2]
[408354843,1773489041461,-150.0,0.00019708,2]
[408354844,1773489041471,-150.0,0.00019708,2]
[408354845,1773489041480,-150.0,0.00019708,2]
[408354846,1773489041489,-150.0,0.00019708,2]
[408354847,1773489041501,-200.00360178,0.00019708,2]
[408354848,1773489041510,-150.0,0.00019708,2]
[408354849,1773489041520,-150.0,0.00019708,2]
[408354850,1773489041529,-150.0,0.00019708,2]